[Event "Titled Tuesday Blitz August 08 Early 2023"]
[White "Aepfler, Christian"]
[Black "nycjack1"]
[WhiteFideId "4628306"]
[WhiteElo "2043"]
[BlackElo "2535"]
[Result "1/2-1/2"]
[Round "1"]
[TimeControl "180+1"]
[Date "2023.08.08"]
[WhiteClock "0:00:18"]
[BlackClock "0:00:24"]
[Board "263"]

1. e4 {[%clk 0:02:59]}  c5 {[%clk 0:03:00]} 2. c3 {[%clk 0:02:59]}  Nf6 {[%clk 0:02:58]} 3. e5 {[%clk 0:02:59]}  Nd5 {[%clk 0:02:58]} 4. Nf3 {[%clk 0:02:59]}  Nc6 {[%clk 0:02:54]} 5. d4 {[%clk 0:02:59]}  cxd4 {[%clk 0:02:52]} 6. cxd4 {[%clk 0:02:59]}  d6 {[%clk 0:02:52]} 7. Bc4 {[%clk 0:02:59]}  Nb6 {[%clk 0:02:52]} 8. Bb5 {[%clk 0:02:59]}  dxe5 {[%clk 0:02:51]} 9. Nxe5 {[%clk 0:02:59]}  Bd7 {[%clk 0:02:50]} 10. Bxc6 {[%clk 0:02:55]}  Bxc6 {[%clk 0:02:47]} 11. O-O {[%clk 0:02:54]}  e6 {[%clk 0:02:41]} 12. Nc3 {[%clk 0:02:47]}  Be7 {[%clk 0:02:34]} 13. Nxc6 {[%clk 0:02:47]}  bxc6 {[%clk 0:02:34]} 14. Qg4 {[%clk 0:02:47]}  Bf6 {[%clk 0:02:32]} 15. Rd1 {[%clk 0:02:44]}  Nd5 {[%clk 0:02:24]} 16. Ne4 {[%clk 0:02:43]}  h6 {[%clk 0:02:05]} 17. Qf3 {[%clk 0:02:00]}  O-O {[%clk 0:01:54]} 18. Nxf6+ {[%clk 0:01:53]}  Qxf6 {[%clk 0:01:54]} 19. Qxf6 {[%clk 0:01:53]}  Nxf6 {[%clk 0:01:55]} 20. Be3 {[%clk 0:01:48]}  Rab8 {[%clk 0:01:48]} 21. b3 {[%clk 0:01:48]}  Nd5 {[%clk 0:01:48]} 22. Rac1 {[%clk 0:01:48]}  Rb6 {[%clk 0:01:49]} 23. Rc4 {[%clk 0:01:46]}  Ra6 {[%clk 0:01:45]} 24. Rd2 {[%clk 0:01:41]}  Rb8 {[%clk 0:01:42]} 25. g3 {[%clk 0:01:26]}  Kf8 {[%clk 0:01:37]} 26. Bf4 {[%clk 0:01:22]}  Nxf4 {[%clk 0:01:29]} 27. gxf4 {[%clk 0:01:22]}  Ke7 {[%clk 0:01:30]} 28. Kf1 {[%clk 0:01:03]}  Rb5 {[%clk 0:01:26]} 29. Ke2 {[%clk 0:01:00]}  Rh5 {[%clk 0:01:25]} 30. Rdc2 {[%clk 0:00:55]}  Kd6 {[%clk 0:01:20]} 31. Rb4 {[%clk 0:00:55]}  Rxh2 {[%clk 0:01:02]} 32. Rb7 {[%clk 0:00:54]}  f5 {[%clk 0:00:51]} 33. Rxg7 {[%clk 0:00:52]}  h5 {[%clk 0:00:52]} 34. Kf3 {[%clk 0:00:45]}  h4 {[%clk 0:00:50]} 35. Rh7 {[%clk 0:00:41]}  Rh3+ {[%clk 0:00:42]} 36. Kg2 {[%clk 0:00:40]}  Rd3 {[%clk 0:00:42]} 37. Re2 {[%clk 0:00:36]}  Rxd4 {[%clk 0:00:35]} 38. Rxh4 {[%clk 0:00:36]}  Re4 {[%clk 0:00:32]} 39. Rd2+ {[%clk 0:00:36]}  Kc5 {[%clk 0:00:31]} 40. Rh3 {[%clk 0:00:34]}  Rd4 {[%clk 0:00:28]} 41. Rc3+ {[%clk 0:00:31]}  Kd5 {[%clk 0:00:28]} 42. Rcc2 {[%clk 0:00:29]}  c5 {[%clk 0:00:28]} 43. Kf3 {[%clk 0:00:27]}  Ra5 {[%clk 0:00:27]} 44. Ke3 {[%clk 0:00:27]}  e5 {[%clk 0:00:26]} 45. fxe5 {[%clk 0:00:27]}  Kxe5 {[%clk 0:00:26]} 46. Rxd4 {[%clk 0:00:28]}  cxd4+ {[%clk 0:00:27]} 47. Kd3 {[%clk 0:00:29]}  Kd5 {[%clk 0:00:26]} 48. a4 {[%clk 0:00:29]}  Ra6 {[%clk 0:00:27]} 49. Rc4 {[%clk 0:00:29]}  Rb6 {[%clk 0:00:28]} 50. Rxd4+ {[%clk 0:00:29]}  Ke5 {[%clk 0:00:28]} 51. b4 {[%clk 0:00:28]}  f4 {[%clk 0:00:28]} 52. Re4+ {[%clk 0:00:27]}  Kf5 {[%clk 0:00:28]} 53. f3 {[%clk 0:00:27]}  Rh6 {[%clk 0:00:28]} 54. Rc4 {[%clk 0:00:23]}  Rh3 {[%clk 0:00:27]} 55. Ke2 {[%clk 0:00:23]}  Rh2+ {[%clk 0:00:27]} 56. Kf1 {[%clk 0:00:24]}  Ra2 {[%clk 0:00:27]} 57. Rc5+ {[%clk 0:00:23]}  Kg6 {[%clk 0:00:27]} 58. a5 {[%clk 0:00:23]}  Rb2 {[%clk 0:00:26]} 59. b5 {[%clk 0:00:22]}  Ra2 {[%clk 0:00:24]} 60. a6 {[%clk 0:00:20]}  Rb2 {[%clk 0:00:23]} 61. Kg1 {[%clk 0:00:20]}  Kf6 {[%clk 0:00:23]} 62. Kf1 {[%clk 0:00:18]}  Ke6 {[%clk 0:00:23]} 63. Rc7 {[%clk 0:00:15]}  Rxb5 {[%clk 0:00:23]} 64. Rxa7 {[%clk 0:00:16]}  Rb3 {[%clk 0:00:18]} 65. Rb7 {[%clk 0:00:16]}  Rxf3+ {[%clk 0:00:17]} 66. Ke2 {[%clk 0:00:16]}  Ra3 {[%clk 0:00:18]} 67. a7 {[%clk 0:00:17]}  Kf5 {[%clk 0:00:11]} 68. Kf2 {[%clk 0:00:16]}  Ra2+ {[%clk 0:00:11]} 69. Kf3 {[%clk 0:00:16]}  Ra3+ {[%clk 0:00:12]} 70. Kf2 {[%clk 0:00:17]}  Ke4 {[%clk 0:00:13]} 71. Re7+ {[%clk 0:00:17]}  Kf5 {[%clk 0:00:12]} 72. Rf7+ {[%clk 0:00:17]}  Ke5 {[%clk 0:00:13]} 73. Re7+ {[%clk 0:00:17]}  Kf6 {[%clk 0:00:13]} 74. Rb7 {[%clk 0:00:17]}  Ke6 {[%clk 0:00:14]} 75. Ke2 {[%clk 0:00:16]}  Kd6 {[%clk 0:00:15]} 76. Kf2 {[%clk 0:00:17]}  Ra4 {[%clk 0:00:15]} 77. Kf3 {[%clk 0:00:16]}  Ke5 {[%clk 0:00:16]} 78. Re7+ {[%clk 0:00:16]}  Kf6 {[%clk 0:00:16]} 79. Rb7 {[%clk 0:00:16]}  Kg5 {[%clk 0:00:16]} 80. Rg7+ {[%clk 0:00:16]}  Kf6 {[%clk 0:00:17]} 81. Rb7 {[%clk 0:00:16]}  Ke6 {[%clk 0:00:17]} 82. Rb6+ {[%clk 0:00:12]}  Kd5 {[%clk 0:00:15]} 83. Rb7 {[%clk 0:00:11]}  Kc6 {[%clk 0:00:14]} 84. Rf7 {[%clk 0:00:11]}  Kb6 {[%clk 0:00:14]} 85. Rxf4 {[%clk 0:00:11]}  Rxa7 {[%clk 0:00:15]} 86. Rf6+ {[%clk 0:00:11]}  Kc5 {[%clk 0:00:15]} 87. Rf4 {[%clk 0:00:12]}  Kd5 {[%clk 0:00:15]} 88. Rf8 {[%clk 0:00:09]}  Ra4 {[%clk 0:00:15]} 89. Kg3 {[%clk 0:00:08]}  Ke5 {[%clk 0:00:15]} 90. Kg2 {[%clk 0:00:09]}  Ra3 {[%clk 0:00:14]} 91. Kg1 {[%clk 0:00:09]}  Ra2 {[%clk 0:00:14]} 92. Rf2 {[%clk 0:00:08]}  Ra3 {[%clk 0:00:14]} 93. Kg2 {[%clk 0:00:08]}  Ke4 {[%clk 0:00:14]} 94. Rf8 {[%clk 0:00:08]}  Ra2+ {[%clk 0:00:14]} 95. Kg3 {[%clk 0:00:09]}  Ra1 {[%clk 0:00:14]} 96. Re8+ {[%clk 0:00:09]}  Kf5 {[%clk 0:00:15]} 97. Rf8+ {[%clk 0:00:09]}  Kg5 {[%clk 0:00:15]} 98. Rg8+ {[%clk 0:00:09]}  Kf6 {[%clk 0:00:15]} 99. Rf8+ {[%clk 0:00:10]}  Kg7 {[%clk 0:00:16]} 100. Rf4 {[%clk 0:00:10]}  Ra3+ {[%clk 0:00:16]} 101. Kf2 {[%clk 0:00:10]}  Ra6 {[%clk 0:00:17]} 102. Rf3 {[%clk 0:00:11]}  Kg6 {[%clk 0:00:17]} 103. Kg2 {[%clk 0:00:11]}  Kg5 {[%clk 0:00:18]} 104. Kf2 {[%clk 0:00:11]}  Kg4 {[%clk 0:00:18]} 105. Rb3 {[%clk 0:00:11]}  Ra2+ {[%clk 0:00:17]} 106. Ke3 {[%clk 0:00:11]}  Rg2 {[%clk 0:00:18]} 107. Kd4 {[%clk 0:00:11]}  Rd2+ {[%clk 0:00:18]} 108. Kc4 {[%clk 0:00:12]}  Rf2 {[%clk 0:00:18]} 109. Kc3 {[%clk 0:00:12]}  Kf5 {[%clk 0:00:19]} 110. Kb4 {[%clk 0:00:13]}  Ke5 {[%clk 0:00:19]} 111. Kc3 {[%clk 0:00:13]}  Rf4 {[%clk 0:00:20]} 112. Rb4 {[%clk 0:00:13]}  Rf3+ {[%clk 0:00:19]} 113. Kc2 {[%clk 0:00:14]}  Kd5 {[%clk 0:00:20]} 114. Rh4 {[%clk 0:00:14]}  Kc5 {[%clk 0:00:19]} 115. Kd2 {[%clk 0:00:15]}  Rf2+ {[%clk 0:00:18]} 116. Ke3 {[%clk 0:00:15]}  Ra2 {[%clk 0:00:19]} 117. Kd3 {[%clk 0:00:15]}  Ra3+ {[%clk 0:00:20]} 118. Kc2 {[%clk 0:00:15]}  Ra2+ {[%clk 0:00:20]} 119. Kb3 {[%clk 0:00:16]}  Ra7 {[%clk 0:00:20]} 120. Kc3 {[%clk 0:00:16]}  Ra3+ {[%clk 0:00:20]} 121. Kb2 {[%clk 0:00:16]}  Rg3 {[%clk 0:00:20]} 122. Kc2 {[%clk 0:00:16]}  Kd5 {[%clk 0:00:20]} 123. Kd2 {[%clk 0:00:17]}  Ke5 {[%clk 0:00:20]} 124. Ke2 {[%clk 0:00:17]}  Ra3 {[%clk 0:00:21]} 125. Rb4 {[%clk 0:00:17]}  Kd5 {[%clk 0:00:21]} 126. Kd2 {[%clk 0:00:17]}  Kc5 {[%clk 0:00:21]} 127. Rg4 {[%clk 0:00:18]}  Ra2+ {[%clk 0:00:21]} 128. Ke3 {[%clk 0:00:18]}  Ra3+ {[%clk 0:00:21]} 129. Kd2 {[%clk 0:00:18]}  Rf3 {[%clk 0:00:21]} 130. Ke2 {[%clk 0:00:18]}  Rf7 {[%clk 0:00:22]} 131. Kd2 {[%clk 0:00:19]}  Rd7+ {[%clk 0:00:22]} 132. Kc2 {[%clk 0:00:19]}  Kb5 {[%clk 0:00:23]} 133. Kb2 {[%clk 0:00:19]}  Rc7 {[%clk 0:00:23]} 134. Rh4 {[%clk 0:00:18]}  Kc5 {[%clk 0:00:24]} 135. Rh3 {[%clk 0:00:18]}  Kd4 {[%clk 0:00:24]} 1/2-1/2


[Site "https://www.chess.com"]

[Event "Titled Tuesday Blitz August 08 Early 2023"]
[White "Keleberda, Tymur"]
[Black "Osiecki, Stanislaw"]
[WhiteFideId "14174294"]
[BlackFideId "1102990"]
[WhiteElo "2534"]
[BlackElo "2011"]
[Result "1-0"]
[Round "1"]
[TimeControl "180+1"]
[Date "2023.08.08"]
[WhiteClock "0:01:48"]
[BlackClock "0:01:32"]
[Board "264"]

1. d4 {[%clk 0:02:58]}  Nf6 {[%clk 0:02:59]} 2. c4 {[%clk 0:02:58]}  g6 {[%clk 0:02:57]} 3. g3 {[%clk 0:02:53]}  Bg7 {[%clk 0:02:57]} 4. Bg2 {[%clk 0:02:54]}  d6 {[%clk 0:02:57]} 5. Nc3 {[%clk 0:02:54]}  O-O {[%clk 0:02:58]} 6. e4 {[%clk 0:02:54]}  Nbd7 {[%clk 0:02:58]} 7. Be3 {[%clk 0:02:54]}  e5 {[%clk 0:02:57]} 8. Nge2 {[%clk 0:02:54]}  Ng4 {[%clk 0:02:55]} 9. Bc1 {[%clk 0:02:53]}  f5 {[%clk 0:02:55]} 10. h3 {[%clk 0:02:50]}  Ngf6 {[%clk 0:02:55]} 11. exf5 {[%clk 0:02:50]}  gxf5 {[%clk 0:02:55]} 12. dxe5 {[%clk 0:02:51]}  dxe5 {[%clk 0:02:55]} 13. O-O {[%clk 0:02:50]}  Kh8 {[%clk 0:02:53]} 14. Bg5 {[%clk 0:02:41]}  h6 {[%clk 0:02:47]} 15. Bh4 {[%clk 0:02:39]}  c6 {[%clk 0:02:42]} 16. Qc2 {[%clk 0:02:38]}  Nc5 {[%clk 0:02:36]} 17. Rad1 {[%clk 0:02:37]}  Qc7 {[%clk 0:02:31]} 18. b4 {[%clk 0:02:34]}  Na6 {[%clk 0:02:18]} 19. a3 {[%clk 0:02:33]}  Be6 {[%clk 0:02:16]} 20. Nb1 {[%clk 0:02:09]}  Rad8 {[%clk 0:02:12]} 21. Nd2 {[%clk 0:02:09]}  Qf7 {[%clk 0:02:02]} 22. Nf3 {[%clk 0:01:51]}  e4 {[%clk 0:01:53]} 23. Ne5 {[%clk 0:01:50]}  Qh5 {[%clk 0:01:43]} 24. Nf4 {[%clk 0:01:49]}  Qe8 {[%clk 0:01:42]} 25. Neg6+ {[%clk 0:01:49]}  Kg8 {[%clk 0:01:42]} 26. Nxf8 {[%clk 0:01:49]}  Kxf8 {[%clk 0:01:32]} 27. Rxd8 {[%clk 0:01:48]} 1-0


[Site "https://www.chess.com"]

[Event "Titled Tuesday Blitz August 08 Early 2023"]
[White "Aarav Dengla"]
[Black "Tharushi, T H D Niklesha"]
[WhiteFideId "45059756"]
[BlackFideId "9918264"]
[WhiteElo "2532"]
[BlackElo "2001"]
[Result "1-0"]
[Round "1"]
[TimeControl "180+1"]
[Date "2023.08.08"]
[WhiteClock "0:00:17"]
[BlackClock "0:00:14"]
[Board "266"]

1. b3 {[%clk 0:03:00]}  Nf6 {[%clk 0:02:57]} 2. Bb2 {[%clk 0:02:59]}  e6 {[%clk 0:02:56]} 3. d3 {[%clk 0:02:59]}  d5 {[%clk 0:02:54]} 4. Nd2 {[%clk 0:02:59]}  c5 {[%clk 0:02:54]} 5. g3 {[%clk 0:02:57]}  Nc6 {[%clk 0:02:53]} 6. Bg2 {[%clk 0:02:57]}  Bd6 {[%clk 0:02:47]} 7. e4 {[%clk 0:02:57]}  d4 {[%clk 0:02:46]} 8. h3 {[%clk 0:02:47]}  e5 {[%clk 0:02:41]} 9. Ne2 {[%clk 0:02:44]}  h5 {[%clk 0:02:41]} 10. Ng1 {[%clk 0:02:30]}  Ne7 {[%clk 0:02:33]} 11. a4 {[%clk 0:02:19]}  Ng6 {[%clk 0:02:14]} 12. h4 {[%clk 0:02:00]}  Ng4 {[%clk 0:02:03]} 13. Nc4 {[%clk 0:01:50]}  Bc7 {[%clk 0:02:01]} 14. Nf3 {[%clk 0:01:48]}  a6 {[%clk 0:02:00]} 15. Qd2 {[%clk 0:01:36]}  b6 {[%clk 0:01:50]} 16. Bh3 {[%clk 0:01:23]}  Rb8 {[%clk 0:01:31]} 17. Qe2 {[%clk 0:01:17]}  b5 {[%clk 0:01:21]} 18. Ncd2 {[%clk 0:01:11]}  Bd7 {[%clk 0:01:12]} 19. axb5 {[%clk 0:01:04]}  axb5 {[%clk 0:01:12]} 20. b4 {[%clk 0:01:04]}  cxb4 {[%clk 0:01:06]} 21. Nb3 {[%clk 0:01:03]}  Bd6 {[%clk 0:01:04]} 22. Qd2 {[%clk 0:01:02]}  Qf6 {[%clk 0:01:01]} 23. Bg2 {[%clk 0:00:49]}  Qe7 {[%clk 0:00:53]} 24. Bh3 {[%clk 0:00:46]}  O-O {[%clk 0:00:52]} 25. Bxg4 {[%clk 0:00:22]}  Bxg4 {[%clk 0:00:51]} 26. Nh2 {[%clk 0:00:22]}  Be6 {[%clk 0:00:49]} 27. Qe2 {[%clk 0:00:22]}  Bxb3 {[%clk 0:00:37]} 28. cxb3 {[%clk 0:00:23]}  Qe6 {[%clk 0:00:37]} 29. Qxh5 {[%clk 0:00:21]}  Qxb3 {[%clk 0:00:37]} 30. Qe2 {[%clk 0:00:22]}  Rfc8 {[%clk 0:00:35]} 31. Rc1 {[%clk 0:00:18]}  Rxc1+ {[%clk 0:00:32]} 32. Bxc1 {[%clk 0:00:19]}  Rc8 {[%clk 0:00:33]} 33. O-O {[%clk 0:00:18]}  Rc2 {[%clk 0:00:32]} 34. Qg4 {[%clk 0:00:18]}  Qxd3 {[%clk 0:00:29]} 35. h5 {[%clk 0:00:17]}  Nf8 {[%clk 0:00:21]} 36. Bh6 {[%clk 0:00:17]}  g6 {[%clk 0:00:20]} 37. Bxf8 {[%clk 0:00:17]}  Kxf8 {[%clk 0:00:19]} 38. hxg6 {[%clk 0:00:17]}  fxg6 {[%clk 0:00:20]} 39. Qxg6 {[%clk 0:00:18]}  Ke7 {[%clk 0:00:20]} 40. Ng4 {[%clk 0:00:17]}  Kd7 {[%clk 0:00:19]} 41. Qf5+ {[%clk 0:00:16]}  Kc6 {[%clk 0:00:19]} 42. Qc8+ {[%clk 0:00:16]}  Kb6 {[%clk 0:00:18]} 43. Qd8+ {[%clk 0:00:16]}  Kc6 {[%clk 0:00:18]} 44. Nf6 {[%clk 0:00:16]}  b3 {[%clk 0:00:16]} 45. Qd7+ {[%clk 0:00:16]}  Kc5 {[%clk 0:00:16]} 46. Qc8+ {[%clk 0:00:16]}  Kb4 {[%clk 0:00:16]} 47. Nd5+ {[%clk 0:00:17]}  Ka3 {[%clk 0:00:15]} 48. Qa6+ {[%clk 0:00:17]}  Kb2 {[%clk 0:00:14]} 49. Qa1# {[%clk 0:00:17]} 1-0


[Site "https://www.chess.com"]

[Event "Titled Tuesday Blitz August 08 Early 2023"]
[White "Verony64"]
[Black "LangesNasenhaar"]
[WhiteElo "2000"]
[BlackElo "2531"]
[Result "0-1"]
[Round "1"]
[TimeControl "180+1"]
[Date "2023.08.08"]
[WhiteClock "0:01:47"]
[BlackClock "0:00:36"]
[Board "267"]

1. d4 {[%clk 0:03:00]}  g6 {[%clk 0:02:58]} 2. c4 {[%clk 0:03:00]}  Bg7 {[%clk 0:02:57]} 3. Nc3 {[%clk 0:02:59]}  c5 {[%clk 0:02:57]} 4. d5 {[%clk 0:02:59]}  Bxc3+ {[%clk 0:02:57]} 5. bxc3 {[%clk 0:02:59]}  f5 {[%clk 0:02:58]} 6. e4 {[%clk 0:02:58]}  fxe4 {[%clk 0:02:55]} 7. g3 {[%clk 0:02:58]}  d6 {[%clk 0:02:51]} 8. Bg2 {[%clk 0:02:58]}  Qa5 {[%clk 0:02:50]} 9. Qc2 {[%clk 0:02:57]}  Nf6 {[%clk 0:02:49]} 10. Ne2 {[%clk 0:02:56]}  Nbd7 {[%clk 0:02:49]} 11. O-O {[%clk 0:02:56]}  Nb6 {[%clk 0:02:49]} 12. Bxe4 {[%clk 0:02:49]}  Nxc4 {[%clk 0:02:26]} 13. Bxg6+ {[%clk 0:02:45]}  hxg6 {[%clk 0:02:23]} 14. Qxg6+ {[%clk 0:02:46]}  Kd8 {[%clk 0:02:22]} 15. Bg5 {[%clk 0:02:37]}  Rg8 {[%clk 0:01:45]} 16. Qh6 {[%clk 0:02:35]}  Qc7 {[%clk 0:01:29]} 17. Bxf6 {[%clk 0:02:31]}  exf6 {[%clk 0:01:29]} 18. Qxf6+ {[%clk 0:02:32]}  Qe7 {[%clk 0:01:28]} 19. Qf3 {[%clk 0:02:21]}  Nd2 {[%clk 0:01:25]} 20. Qd3 {[%clk 0:02:20]}  Nxf1 {[%clk 0:01:24]} 21. Rxf1 {[%clk 0:02:21]}  Bh3 {[%clk 0:01:15]} 22. Rb1 {[%clk 0:02:20]}  Qd7 {[%clk 0:01:05]} 23. Nf4 {[%clk 0:02:17]}  Bf5 {[%clk 0:01:05]} 24. Qd1 {[%clk 0:02:10]}  Bxb1 {[%clk 0:01:03]} 25. Qxb1 {[%clk 0:02:11]}  Re8 {[%clk 0:00:54]} 26. Qg6 {[%clk 0:02:09]}  Kc7 {[%clk 0:00:51]} 27. Ne6+ {[%clk 0:02:08]}  Rxe6 {[%clk 0:00:43]} 28. dxe6 {[%clk 0:02:08]}  Qc6 {[%clk 0:00:42]} 29. Qf7+ {[%clk 0:02:08]}  Kb6 {[%clk 0:00:42]} 30. e7 {[%clk 0:02:01]}  Re8 {[%clk 0:00:39]} 31. f4 {[%clk 0:01:59]}  Qd7 {[%clk 0:00:39]} 32. Qb3+ {[%clk 0:01:57]}  Kc7 {[%clk 0:00:39]} 33. Qa3 {[%clk 0:01:53]}  Qxe7 {[%clk 0:00:38]} 34. Qa5+ {[%clk 0:01:47]}  Kb8 {[%clk 0:00:36]} 0-1


[Site "https://www.chess.com"]

[Event "Titled Tuesday Blitz August 08 Early 2023"]
[White "Castillo Pena, Patricia Evarista"]
[Black "Pinero Rodriguez, Carlos Jose"]
[WhiteFideId "6412106"]
[BlackFideId "3901726"]
[WhiteElo "1941"]
[BlackElo "2530"]
[Result "0-1"]
[Round "1"]
[TimeControl "180+1"]
[Date "2023.08.08"]
[WhiteClock "0:00:00"]
[BlackClock "0:00:39"]
[Board "269"]

1. d4 {[%clk 0:02:57]}  Nf6 {[%clk 0:02:56]} 2. Nf3 {[%clk 0:02:56]}  e6 {[%clk 0:02:52]} 3. e3 {[%clk 0:02:52]}  c5 {[%clk 0:02:52]} 4. Bd3 {[%clk 0:02:50]}  b6 {[%clk 0:02:52]} 5. O-O {[%clk 0:02:49]}  Bb7 {[%clk 0:02:52]} 6. Nbd2 {[%clk 0:02:48]}  Qc7 {[%clk 0:02:51]} 7. b3 {[%clk 0:02:48]}  d6 {[%clk 0:02:49]} 8. Bb2 {[%clk 0:02:48]}  Nbd7 {[%clk 0:02:49]} 9. c4 {[%clk 0:02:47]}  a6 {[%clk 0:02:49]} 10. Rc1 {[%clk 0:02:46]}  Be7 {[%clk 0:02:48]} 11. Qe2 {[%clk 0:02:46]}  h6 {[%clk 0:02:45]} 12. e4 {[%clk 0:02:41]}  cxd4 {[%clk 0:02:43]} 13. Bxd4 {[%clk 0:02:37]}  O-O {[%clk 0:02:29]} 14. b4 {[%clk 0:02:28]}  Rac8 {[%clk 0:02:27]} 15. h3 {[%clk 0:02:27]}  Rfd8 {[%clk 0:02:10]} 16. Rfd1 {[%clk 0:02:25]}  Ne5 {[%clk 0:02:05]} 17. Bb1 {[%clk 0:02:01]}  Nfd7 {[%clk 0:01:58]} 18. Qe3 {[%clk 0:01:57]}  Bf6 {[%clk 0:01:47]} 19. Nxe5 {[%clk 0:01:38]}  Bxe5 {[%clk 0:01:44]} 20. Nf3 {[%clk 0:01:21]}  Bxd4 {[%clk 0:01:41]} 21. Qxd4 {[%clk 0:01:18]}  Nf8 {[%clk 0:01:35]} 22. Qe3 {[%clk 0:01:16]}  Rd7 {[%clk 0:01:25]} 23. c5 {[%clk 0:01:09]}  dxc5 {[%clk 0:01:24]} 24. Rxd7 {[%clk 0:00:45]}  Nxd7 {[%clk 0:01:21]} 25. e5 {[%clk 0:00:39]}  Bxf3 {[%clk 0:01:14]} 26. Qxf3 {[%clk 0:00:39]}  Qxe5 {[%clk 0:01:10]} 27. Qd3 {[%clk 0:00:38]}  Nf6 {[%clk 0:01:08]} 28. Qxa6 {[%clk 0:00:29]}  Qc7 {[%clk 0:01:07]} 29. bxc5 {[%clk 0:00:27]}  bxc5 {[%clk 0:01:08]} 30. Qd3 {[%clk 0:00:23]}  c4 {[%clk 0:01:08]} 31. Qc2 {[%clk 0:00:22]}  Qa5 {[%clk 0:01:05]} 32. g3 {[%clk 0:00:20]}  g6 {[%clk 0:00:56]} 33. Qb2 {[%clk 0:00:17]}  Kg7 {[%clk 0:00:52]} 34. g4 {[%clk 0:00:13]}  c3 {[%clk 0:00:51]} 35. Qb7 {[%clk 0:00:14]}  Qc5 {[%clk 0:00:50]} 36. Bc2 {[%clk 0:00:12]}  Rc7 {[%clk 0:00:50]} 37. Qb8 {[%clk 0:00:12]}  Nd5 {[%clk 0:00:46]} 38. Bb3 {[%clk 0:00:08]}  Nf4 {[%clk 0:00:45]} 39. Rc2 {[%clk 0:00:03]}  Nxh3+ {[%clk 0:00:42]} 40. Kg2 {[%clk 0:00:02]}  Nf4+ {[%clk 0:00:43]} 41. Kg1 {[%clk 0:00:00]}  g5 {[%clk 0:00:39]} 0-1


[Site "https://www.chess.com"]

[Event "Titled Tuesday Blitz August 08 Early 2023"]
[White "Berezin, Viktor"]
[Black "sasvathaa"]
[WhiteFideId "14107872"]
[WhiteElo "2530"]
[BlackElo "1911"]
[Result "1-0"]
[Round "1"]
[TimeControl "180+1"]
[Date "2023.08.08"]
[WhiteClock "0:01:47"]
[BlackClock "0:02:05"]
[Board "270"]

1. d4 {[%clk 0:02:56]}  Nf6 {[%clk 0:02:59]} 2. Nf3 {[%clk 0:02:55]}  e6 {[%clk 0:02:59]} 3. c4 {[%clk 0:02:55]}  d5 {[%clk 0:02:59]} 4. g3 {[%clk 0:02:54]}  dxc4 {[%clk 0:02:58]} 5. Qa4+ {[%clk 0:02:52]}  Bd7 {[%clk 0:02:57]} 6. Qxc4 {[%clk 0:02:51]}  Bc6 {[%clk 0:02:53]} 7. Bg2 {[%clk 0:02:50]}  Bd5 {[%clk 0:02:44]} 8. Qc2 {[%clk 0:02:50]}  Nbd7 {[%clk 0:02:41]} 9. Nc3 {[%clk 0:02:50]}  Bc6 {[%clk 0:02:38]} 10. O-O {[%clk 0:02:49]}  b6 {[%clk 0:02:35]} 11. e4 {[%clk 0:02:38]}  Bb4 {[%clk 0:02:32]} 12. d5 {[%clk 0:02:27]}  exd5 {[%clk 0:02:26]} 13. exd5 {[%clk 0:02:08]}  Bxd5 {[%clk 0:02:18]} 14. Nxd5 {[%clk 0:01:58]}  Nxd5 {[%clk 0:02:18]} 15. Qe4+ {[%clk 0:01:53]}  Qe7 {[%clk 0:02:08]} 16. Qxd5 {[%clk 0:01:51]}  O-O {[%clk 0:02:08]} 17. Bf4 {[%clk 0:01:49]}  c5 {[%clk 0:02:05]} 18. a3 {[%clk 0:01:47]} 1-0


[Site "https://www.chess.com"]

[Event "Titled Tuesday Blitz August 08 Early 2023"]
[White "Shukhman, Anna"]
[Black "Al Mutairi, Hassan S"]
[WhiteFideId "54180058"]
[BlackFideId "21500193"]
[WhiteElo "2527"]
[BlackElo "1709"]
[Result "1-0"]
[Round "1"]
[TimeControl "180+1"]
[Date "2023.08.08"]
[WhiteClock "0:01:14"]
[BlackClock "0:01:32"]
[Board "272"]

1. e4 {[%clk 0:02:59]}  c5 {[%clk 0:02:55]} 2. Nf3 {[%clk 0:02:58]}  d6 {[%clk 0:02:56]} 3. d4 {[%clk 0:02:58]}  cxd4 {[%clk 0:02:56]} 4. Nxd4 {[%clk 0:02:58]}  Nf6 {[%clk 0:02:57]} 5. Nc3 {[%clk 0:02:58]}  g6 {[%clk 0:02:57]} 6. Be3 {[%clk 0:02:54]}  Bg7 {[%clk 0:02:57]} 7. f3 {[%clk 0:02:54]}  O-O {[%clk 0:02:56]} 8. Qd2 {[%clk 0:02:54]}  Nc6 {[%clk 0:02:56]} 9. g4 {[%clk 0:02:53]}  h5 {[%clk 0:02:50]} 10. g5 {[%clk 0:02:52]}  Nd7 {[%clk 0:02:45]} 11. O-O-O {[%clk 0:02:48]}  a6 {[%clk 0:02:37]} 12. f4 {[%clk 0:02:48]}  Qa5 {[%clk 0:02:29]} 13. f5 {[%clk 0:02:38]}  Nb4 {[%clk 0:02:25]} 14. a3 {[%clk 0:02:33]}  Nc6 {[%clk 0:02:16]} 15. fxg6 {[%clk 0:02:31]}  fxg6 {[%clk 0:02:16]} 16. Bc4+ {[%clk 0:02:10]}  Kh7 {[%clk 0:02:11]} 17. Ne6 {[%clk 0:01:54]}  Bxc3 {[%clk 0:02:06]} 18. Nxf8+ {[%clk 0:01:52]}  Kg7 {[%clk 0:02:03]} 19. Ne6+ {[%clk 0:01:51]}  Kh8 {[%clk 0:02:01]} 20. Qxc3+ {[%clk 0:01:48]}  Qxc3 {[%clk 0:01:59]} 21. bxc3 {[%clk 0:01:49]}  Nde5 {[%clk 0:01:59]} 22. Bd5 {[%clk 0:01:49]}  Bxe6 {[%clk 0:01:54]} 23. Bxe6 {[%clk 0:01:48]}  Rf8 {[%clk 0:01:54]} 24. Rhf1 {[%clk 0:01:46]}  Nf3 {[%clk 0:01:54]} 25. Rf2 {[%clk 0:01:43]}  Nce5 {[%clk 0:01:53]} 26. Rdf1 {[%clk 0:01:42]}  Kh7 {[%clk 0:01:51]} 27. Bd4 {[%clk 0:01:41]}  Nxd4 {[%clk 0:01:48]} 28. Rxf8 {[%clk 0:01:39]}  Nxe6 {[%clk 0:01:49]} 29. Re8 {[%clk 0:01:35]}  Nc6 {[%clk 0:01:48]} 30. Rf7+ {[%clk 0:01:31]}  Ng7 {[%clk 0:01:45]} 31. a4 {[%clk 0:01:18]}  Ne5 {[%clk 0:01:43]} 32. Rfxe7 {[%clk 0:01:17]}  Nc6 {[%clk 0:01:43]} 33. Rxb7 {[%clk 0:01:16]}  Ne5 {[%clk 0:01:44]} 34. Ree7 {[%clk 0:01:15]}  Kh8 {[%clk 0:01:43]} 35. Rxg7 {[%clk 0:01:15]}  Nd7 {[%clk 0:01:32]} 36. Rgxd7 {[%clk 0:01:14]} 1-0


[Site "https://www.chess.com"]